bitfinex-derivatives/quotes_BNBF0:USTF0_20250221
["timestamp","ask_amount","ask_price","bid_price","bid_amount"]
[1740116307989,1.62500691,653.58,652.7,2.17039289]
[1740116308188,1.62500691,653.58,652.71,2.17039289]
[1740116308488,1.62500691,653.58,652.16,1.14560293]
[1740116308489,1.62500691,653.58,652.72,5.1824588]
[1740116308688,1.62500691,653.58,652.73,2.17039289]
[1740116308887,1.62500691,653.58,652.74,2.17039289]
[1740116309088,1.62500691,653.58,652.75,2.17039289]
[1740116309288,1.62500691,653.58,652.76,2.17039289]
[1740116309489,0.30600691,653.58,652.77,2.170008]
[1740116309789,0.30600691,653.58,652.6,1.15061681]
[1740116309984,0.30600691,653.58,652.61,2.17024201]
[1740116310187,0.30600691,653.58,652.62,5.18081894]
[1740116310383,0.30600691,653.58,652.63,2.17024201]
[1740116310589,0.30600691,653.58,652.64,2.17024201]
[1740116310788,0.30600691,653.58,652.65,2.17024201]
[1740116311084,0.30600691,653.58,652.66,2.17024201]
[1740116311283,0.30600691,653.58,652.67,5.18081894]
[1740116311492,0.30600691,653.58,652.68,2.17024201]
[1740116311689,0.30600691,653.58,652.67,3.01057693]
[1740116311889,0.30600691,653.58,652.68,2.17035848]
[1740116312087,0.30600691,653.58,652.67,3.01057693]
[1740116312292,0.30600691,653.58,652.68,2.17035876]
[1740116312491,0.30600691,653.58,652.69,2.17035876]
[1740116312692,0.30600691,653.58,652.67,3.01057693]
[1740116312894,0.30600691,653.58,652.68,2.170266]
[1740116313090,0.30600691,653.58,652.67,3.01057693]
[1740116313591,0.30600691,653.58,652.57,1.15061681]
[1740116315797,0.30600691,653.58,652.27,1.15061681]
[1740116319397,0.30600691,653.58,652.29,1.15061681]
[1740116322203,0.30600691,653.58,652.3,2.17115373]
[1740116322400,0.30600691,653.58,652.31,2.17115373]
[1740116322594,0.30600691,653.58,652.32,3.01176172]
[1740116322801,0.30600691,653.58,652.33,3.32183254]
[1740116322997,0.30600691,653.58,652.34,2.17121573]
[1740116323196,0.30600691,653.58,652.35,2.17121573]
[1740116323396,0.30600691,653.58,652.36,2.17121573]
[1740116323602,0.30600691,653.58,652.37,2.17121573]
[1740116323801,0.30600691,653.58,652.38,2.17121573]
[1740116324002,0.30600691,653.58,652.33,1.15061681]
[1740116324003,0.30600691,653.58,652.39,2.17121573]
[1740116324202,0.30600691,653.58,652.4,2.17121573]
[1740116324402,0.30600691,653.58,652.41,2.17121573]
[1740116324598,0.30600691,653.58,652.42,5.18297745]
[1740116324799,0.30600691,653.58,652.43,2.17121573]
[1740116325003,0.30600691,653.58,652.44,2.17121573]
[1740116325203,0.30600691,653.58,652.48,1.15061681]
[1740116325998,0.30600691,653.58,652.49,2.1719881]
[1740116326207,0.30600691,653.58,652.48,1.15061681]
[1740116326406,0.30600691,653.58,652.49,2.17201038]
[1740116326607,0.30600691,653.58,652.5,2.17201038]
[1740116326903,0.30600691,653.58,652.48,1.15061681]
[1740116327107,0.30600691,653.58,652.51,3.01176172]
[1740116327304,0.30600691,653.58,652.52,2.17249742]
[1740116327503,0.30600691,653.58,652.53,2.17249742]
[1740116327803,0.30600691,653.58,652.54,2.17249742]
[1740116328003,0.30600691,653.58,652.55,2.17249742]
[1740116328204,0.30600691,653.58,652.56,2.17249742]
[1740116328402,0.30600691,653.58,652.57,5.18425914]
[1740116328603,0.30600691,653.58,652.58,2.17249742]
[1740116328806,0.30600691,653.58,652.59,2.17249742]
[1740116329003,0.30600691,653.58,652.6,2.17249742]
[1740116329203,0.30600691,653.58,652.61,2.17249742]
[1740116329407,0.30600691,653.58,652.62,2.17249742]
[1740116329603,0.30600691,653.58,652.63,5.18425914]
[1740116329807,0.30600691,653.58,652.64,2.17249742]
[1740116330107,0.30600691,653.58,652.65,2.17249742]
[1740116330307,0.30600691,653.58,652.66,2.17249742]
[1740116330503,0.30600691,653.58,652.63,3.01176172]
[1740116330707,0.30600691,653.58,652.64,5.18450454]
[1740116330902,0.30600691,653.58,652.65,2.16203731]
[1740116331207,0.30600691,653.58,652.66,2.16203731]
[1740116331403,0.30600691,653.58,652.64,3.01176172]
[1740116332203,0.30600691,653.58,652.65,3.01176172]
[1740116333502,0.30600691,653.58,652.66,3.01176172]
[1740116335310,0.30600691,653.58,652.67,3.01176172]
[1740116337109,0.30600691,653.58,652.68,3.01176172]
[1740116338516,0.30600691,653.58,652.59,1.15061681]
[1740116338517,0.30600691,653.58,652.69,3.01176172]
[1740116340219,0.30600691,653.58,652.66,1.15061681]
[1740116340714,0.30600691,653.58,652.67,3.01473784]
[1740116341118,0.30600691,653.58,652.68,2.17281194]
[1740116341419,0.30600691,653.58,652.67,3.01473784]
[1740116341620,0.30600691,653.58,652.68,2.17282062]
[1740116341814,0.30600691,653.58,652.69,2.17282062]
[1740116342018,0.30600691,653.58,652.7,2.17282062]
[1740116342215,0.30600691,653.58,652.71,3.01473784]
[1740116342920,0.30600691,653.58,652.72,2.17297761]
[1740116343123,0.30600691,653.58,652.71,3.01473784]
[1740116343323,0.30600691,653.58,652.72,2.17293207]
[1740116343621,0.30600691,653.58,652.73,2.17293207]
[1740116343824,0.30600691,653.58,652.73,3.01473784]
[1740116344625,0.30600691,653.58,652.74,2.17307785]
[1740116344823,0.30600691,653.58,652.75,2.17307785]
[1740116345024,0.30600691,653.58,652.76,2.17307785]
[1740116345224,0.30600691,653.58,652.73,3.01473784]
[1740116345622,0.30600691,653.58,652.71,1.15061681]
[1740116346419,0.30600691,653.58,652.72,5.18673789]
[1740116346625,0.30600691,653.58,652.73,2.17241809]
[1740116346825,0.30600691,653.58,652.74,2.17241809]
[1740116347026,0.30600691,653.58,652.72,3.0143198]
[1740116347227,1.78800691,653.58,652.73,2.1721578]
[1740116347428,1.78800691,653.58,652.72,3.0143198]
[1740116347724,1.78800691,653.58,652.73,5.18653526]
[1740116347922,1.78800691,653.58,652.73,3.0143198]
[1740116348121,1.78800691,653.58,652.74,2.17214283]
[1740116348326,1.78800691,653.58,652.73,3.0143198]
[1740116348728,1.78800691,653.58,652.74,2.17221344]
[1740116348928,1.78800691,653.58,652.75,2.17221344]
[1740116349228,1.78800691,653.58,652.76,2.17221344]
[1740116349425,1.78800691,653.58,652.77,2.17221344]
[1740116349626,1.78800691,653.58,652.75,3.0143198]
[1740116349827,1.78800691,653.58,652.76,2.17226814]
[1740116350024,1.78800691,653.58,652.77,2.17226814]
[1740116350227,1.78800691,653.58,652.78,2.17214858]
[1740116350424,1.78800691,653.58,652.78,3.0143198]
[1740116351328,1.78800691,653.58,652.79,3.0143198]
[1740116353130,1.78800691,653.58,652.7,1.15061681]
[1740116355632,1.78800691,653.58,652.71,3.01420353]
[1740116356733,1.78800691,653.58,652.72,3.01420353]
[1740116358931,1.78800691,653.58,652.6,1.15061681]
[1740116359136,1.78800691,653.58,652.61,2.17235088]
[1740116359338,1.78800691,653.58,652.62,2.17235088]
[1740116359536,1.78800691,653.58,652.63,2.17235088]
[1740116359735,1.78800691,653.58,652.64,2.17235088]
[1740116359933,1.78800691,653.58,652.65,2.17235088]
[1740116360138,1.78800691,653.58,652.66,2.17235088]
[1740116360340,1.78800691,653.58,652.67,2.17235088]
[1740116360643,1.78800691,653.58,652.68,2.17235088]
[1740116360834,1.78800691,653.58,652.69,2.17235088]
[1740116361035,1.78800691,653.58,652.7,2.17235088]
[1740116361240,1.78800691,653.58,652.71,5.18672667]
[1740116361539,1.78800691,653.58,652.72,2.17235088]
[1740116361739,1.78800691,653.58,652.73,2.17235088]
[1740116361938,1.78800691,653.58,652.74,2.17235088]
[1740116362137,1.78800691,653.58,652.75,2.17235088]
[1740116362339,1.78800691,653.58,652.76,2.17235088]
[1740116362539,0.30600691,653.58,652.77,2.17235088]
[1740116362744,0.30600691,653.58,652.78,2.17235088]
[1740116362942,0.30600691,653.58,652.79,2.17235088]
[1740116363142,0.30600691,653.58,652.8,2.17235088]
[1740116363442,0.30600691,653.58,652.81,2.17235088]
[1740116363640,0.30600691,653.58,652.82,2.17235088]
[1740116363837,0.30600691,653.58,652.83,2.17235088]
[1740116364143,0.30600691,653.58,652.84,2.17235088]
[1740116364345,0.30600691,653.58,652.85,2.17235088]
[1740116364545,0.30600691,653.58,652.85,3.01437579]
[1740116366146,0.30600691,653.58,652.77,1.15061681]
[1740116368246,0.30600691,653.58,646.12,9.19266079]
[1740116368247,0.30600691,653.58,652.62,1.15061681]
[1740116368442,0.30600691,653.58,652.63,2.17220484]
[1740116368643,0.30600691,653.58,652.64,5.18617523]
[1740116368841,1.60200691,653.58,652.65,2.17220484]
[1740116369045,1.60200691,653.58,652.64,3.01397039]
[1740116369948,1.60200691,653.58,652.62,1.15061681]
[1740116370749,1.60200691,653.58,652.61,1.15061681]
[1740116373855,1.60200691,653.58,652.51,1.15061681]
[1740116376255,1.60200691,653.58,652.61,1.15061681]
[1740116379258,1.60200691,653.58,652.64,1.15061681]
[1740116379651,1.60200691,653.58,652.65,2.17201092]
[1740116379851,1.60200691,653.58,652.66,2.17201092]
[1740116380056,1.60200691,653.58,652.67,2.17201092]
[1740116380258,1.60200691,653.58,652.68,2.17201092]
[1740116380459,1.60200691,653.58,652.69,2.17201092]
[1740116380660,1.60200691,653.58,652.7,2.17201092]
[1740116380960,1.60200691,653.58,652.71,5.18580917]
[1740116381161,1.60200691,653.58,652.72,2.17201092]
[1740116381361,1.60200691,653.58,652.73,2.17201092]
[1740116381564,1.60200691,653.58,652.74,2.17201092]
[1740116381862,1.60200691,653.58,652.71,3.01379825]
[1740116382063,1.60200691,653.58,652.83,1.15061681]
[1740116385965,1.60200691,653.58,645.89,5.51559647]
[1740116385966,1.60200691,653.58,652.84,1.15061681]
[1740116387765,0.30600691,653.58,652.84,1.15061681]
[1740116389266,0.30600691,653.58,652.83,1.15061681]
[1740116392165,0.30600691,653.58,652.84,3.01673188]
[1740116393273,0.30600691,653.58,652.85,3.01673188]
[1740116393573,0.30600691,653.58,652.86,2.17469164]
[1740116393774,0.30600691,653.58,652.87,2.17469164]
[1740116393973,0.30600691,653.58,652.88,2.17469164]
[1740116394273,0.30600691,653.58,652.89,2.17469164]
[1740116394475,0.30600691,653.58,652.9,2.17469164]
[1740116394666,0.30600691,653.58,652.85,3.01673188]
[1740116394869,0.30600691,653.58,652.86,2.17502988]
[1740116395068,0.30600691,653.58,652.87,2.17502988]
[1740116395368,0.30600691,653.58,652.88,2.17502988]
[1740116395565,0.30600691,653.58,652.89,2.17502988]
[1740116395770,0.30600691,653.58,652.9,2.17502988]
[1740116395966,0.30600691,653.58,652.87,3.01673188]
[1740116396165,0.30600691,653.58,652.88,2.17557033]
[1740116396365,0.30600691,653.58,652.89,2.17557033]
[1740116396571,0.30600691,653.58,652.9,2.17557033]
[1740116396769,0.30600691,653.58,652.91,2.17557033]
[1740116396967,0.30600691,653.58,652.88,3.01673188]
[1740116397167,0.30600691,653.58,652.89,2.17583981]
[1740116397377,0.30600691,653.58,652.9,5.19257169]
[1740116397677,0.30600691,653.58,652.91,2.17583981]
[1740116397869,0.30600691,653.58,652.9,3.01673188]
[1740116397870,0.30600691,653.58,652.92,2.17583981]
[1740116398173,0.30600691,653.58,652.93,2.17583981]
[1740116398373,0.30600691,653.58,652.94,5.19257169]
[1740116398567,0.30600691,653.58,652.95,2.17583981]
[1740116398767,0.30600691,653.58,652.96,2.17583981]
[1740116398971,0.30600691,653.58,652.94,3.01673188]
[1740116398972,0.30600691,653.58,652.97,2.17583981]
[1740116399171,0.30600691,653.58,652.98,2.17583981]
[1740116399473,0.30600691,653.58,652.99,2.17583981]
[1740116399673,0.30600691,653.58,653.0,2.17583981]
[1740116399874,0.30600691,653.58,653.01,2.17583981]
[1740116400074,0.30600691,653.58,653.02,2.17583981]
[1740116400269,0.30600691,653.58,653.03,2.17583981]
[1740116400474,0.30600691,653.58,652.99,3.01673188]
[1740116400770,0.30600691,653.58,653.0,2.17688384]
[1740116400976,0.30600691,653.58,653.01,2.17688384]
[1740116401171,0.30600691,653.58,653.02,2.17688384]
[1740116401372,0.30600691,653.58,653.01,3.01673188]
[1740116401577,0.30600691,653.58,653.02,2.17704126]
[1740116401877,0.30600691,653.58,653.03,2.17704126]
[1740116402072,0.30600691,653.58,653.01,3.01673188]
[1740116402271,0.30600691,653.58,653.02,2.17771639]
[1740116402475,0.30600691,653.58,653.03,2.17771639]
[1740116402674,0.30600691,653.58,653.01,3.01673188]
[1740116402874,0.30600691,653.58,653.02,5.19445117]
[1740116403074,0.30600691,653.58,653.03,2.17771929]
[1740116403274,0.30600691,653.58,653.02,3.01673188]
[1740116403476,0.30600691,653.58,653.03,2.17802197]
[1740116403771,0.30600691,653.58,653.04,2.17800553]
[1740116403972,0.30600691,653.58,653.02,3.01673188]
[1740116404177,0.30600691,653.58,653.03,2.17795993]
[1740116404478,0.30600691,653.58,653.04,2.17795993]
[1740116404679,0.30600691,653.58,653.03,3.01673188]
[1740116405275,0.30600691,653.58,653.04,3.01673188]
[1740116405477,0.30600691,653.58,653.05,2.17819314]
[1740116405673,0.30600691,653.58,653.04,3.01673188]
[1740116406480,0.30600691,653.58,653.05,3.01673188]
[1740116407780,0.30600691,653.58,652.82,1.15061681]
[1740116407981,0.30600691,653.58,652.83,2.17822368]
[1740116408279,0.30600691,653.58,652.84,3.02237515]
[1740116409679,0.30600691,653.58,652.83,1.15061681]
[1740116411180,0.30600691,653.58,652.77,1.15061681]
[1740116414685,0.30600691,653.58,652.69,1.15061681]
[1740116418386,0.30600691,653.58,652.44,1.14618105]
[1740116418387,0.30600691,653.58,652.44,1.15061681]
[1740116420485,0.30600691,653.58,652.45,5.19410395]
[1740116420684,0.30600691,653.58,652.46,2.17558443]
[1740116420984,0.30600691,653.58,652.47,2.17558443]
[1740116421284,0.30600691,653.58,652.48,2.17558443]
[1740116421479,0.30600691,653.58,652.49,2.17558443]
[1740116421684,0.30600691,653.58,652.5,2.17558443]
[1740116421980,0.30600691,653.58,652.51,5.1940919]
[1740116422184,0.30600691,653.58,652.52,2.17558443]
[1740116422377,0.30600691,653.58,652.53,2.17558443]
[1740116422578,0.30600691,653.58,652.54,2.17558443]
[1740116422784,0.30600691,653.58,652.55,2.17558443]
[1740116422983,0.30600691,653.58,652.56,2.17558443]
[1740116423284,0.30600691,653.58,652.57,2.17558443]
[1740116423485,0.30600691,653.58,652.58,5.1940919]
[1740116423684,0.30600691,653.58,652.59,2.17558443]
[1740116423879,0.30600691,653.58,652.6,2.17558443]
[1740116424086,0.30600691,653.58,652.61,2.17558443]
[1740116424280,0.30600691,653.58,652.62,2.17558443]
[1740116424480,0.30600691,653.58,652.63,2.17558443]
[1740116424786,0.30600691,653.58,652.64,2.17558443]
[1740116424985,0.30600691,653.58,652.65,2.17558443]
[1740116425181,0.30600691,653.58,652.66,2.17558443]
[1740116425384,0.30600691,653.58,652.65,3.01850747]
[1740116426185,0.30600691,653.58,652.66,2.17510022]
[1740116426384,0.30600691,653.58,652.67,2.17510022]
[1740116426581,0.30600691,653.58,652.68,2.17510022]
[1740116426787,0.30600691,653.58,652.69,5.19360769]
[1740116427084,0.30600691,653.58,652.69,3.01850747]
[1740116427786,0.30600691,653.58,652.59,1.15061681]
[1740116429182,0.30600691,653.58,652.5,1.15061681]
[1740116431887,0.30600691,653.58,652.48,1.15061681]
[1740116435994,0.30600691,653.58,652.44,1.15061681]
[1740116436893,0.30600691,653.58,652.45,2.17395679]
[1740116437193,0.30600691,653.58,652.46,2.17395679]
[1740116437497,0.30600691,653.58,652.47,2.17395679]
[1740116437693,0.30600691,653.58,652.48,2.17395679]
[1740116437897,0.30600691,653.58,652.49,2.17395679]
[1740116438199,0.30600691,653.58,652.5,2.17395679]
[1740116438397,0.30600691,653.58,652.51,2.17395679]
[1740116438591,0.30600691,653.58,652.52,2.17395679]
[1740116438791,0.30600691,653.58,652.53,2.17395679]
[1740116438993,0.30600691,653.58,652.54,2.17395679]
[1740116439198,0.30600691,653.58,652.55,5.19011113]
[1740116439396,0.30600691,653.58,652.56,2.17395679]
[1740116439592,0.30600691,653.58,652.57,2.17395679]
[1740116439793,0.30600691,653.58,652.58,2.17395679]
[1740116439993,0.30600691,653.58,652.59,2.17395679]
[1740116440199,0.30600691,653.58,652.6,2.17395679]
[1740116440497,0.30600691,653.58,652.61,2.17395679]
[1740116440693,0.30600691,653.58,652.62,2.17395679]
[1740116440893,0.30600691,653.58,652.63,2.17395679]
[1740116441099,0.30600691,653.58,652.64,2.17395679]
[1740116441299,0.30600691,653.58,652.65,2.17395679]
[1740116441500,0.30600691,653.58,652.66,2.17395679]
[1740116441701,0.30600691,653.58,652.67,2.17395679]
[1740116441902,0.30600691,653.58,652.68,2.17395679]
[1740116442102,0.30600691,653.58,652.62,3.01615434]
[1740116442305,0.30600691,653.58,652.63,2.17365742]
[1740116442498,0.30600691,653.58,652.64,2.17365742]
[1740116442696,0.30600691,653.58,652.65,2.17365742]
[1740116442901,0.30600691,653.58,652.66,2.17365742]
[1740116443102,0.30600691,653.58,652.67,2.17365742]
[1740116443300,0.30600691,653.58,652.68,2.17365742]
[1740116443605,0.30600691,653.58,652.65,3.01615434]
[1740116443806,0.30600691,653.58,652.66,2.17354515]
[1740116444005,0.30600691,653.58,652.67,2.17354515]
[1740116444205,0.30600691,653.58,652.68,2.17354515]
[1740116444405,0.30600691,653.58,652.69,2.17354515]
[1740116444606,0.30600691,653.58,652.7,5.18969949]
[1740116444806,0.30600691,653.58,652.71,2.17354515]
[1740116445002,0.30600691,653.58,652.72,2.17354515]
[1740116445208,0.30600691,653.58,652.73,2.17354515]
[1740116445508,0.30600691,653.58,652.74,2.17354515]
[1740116445708,0.30600691,653.58,652.75,2.17354515]
[1740116445908,0.30600691,653.58,652.7,3.01615434]
[1740116446108,0.30600691,653.58,652.71,2.17344339]
[1740116446304,0.30600691,653.58,652.72,2.17344339]
[1740116446507,0.30600691,653.58,652.71,3.01615434]
[1740116447306,0.30600691,653.58,652.72,2.17357019]
[1740116447502,0.30600691,653.58,652.71,3.01615434]
[1740116447704,0.30600691,653.58,652.72,2.17357354]
[1740116447908,0.30600691,653.58,652.72,3.01615434]
[1740116448512,0.30600691,653.58,652.73,2.1736509]
[1740116448712,0.30600691,653.58,652.74,2.1736509]
[1740116449014,0.30600691,653.58,652.75,2.1736509]
[1740116449207,0.30600691,653.58,652.76,2.1736509]
[1740116449405,0.30600691,653.58,652.75,3.01615434]
[1740116449613,0.30600691,653.58,652.76,2.17367609]
[1740116449814,0.30600691,653.58,652.75,3.01615434]
[1740116450015,0.30600691,653.58,652.76,2.17367609]
[1740116450214,0.30600691,653.58,652.75,3.01615434]
[1740116450415,0.30600691,653.58,652.76,2.17371797]
[1740116450711,0.30600691,653.58,652.77,2.17371797]
[1740116450914,0.30600691,653.58,652.78,2.17371797]
[1740116451113,0.30600691,653.58,652.79,2.17371797]
[1740116451312,0.30600691,653.58,652.8,2.17371797]
[1740116451511,0.30600691,653.58,652.81,2.17371797]
[1740116451816,0.30600691,653.58,652.82,3.01615434]
[1740116453417,0.30600691,653.58,652.83,3.01615434]
[1740116454619,0.30600691,653.58,652.84,5.19003322]
[1740116454820,0.30600691,653.58,652.84,3.01615434]
[1740116455722,0.30600691,653.58,652.85,2.17391968]
[1740116455921,0.30600691,653.58,652.86,2.17391968]
[1740116456123,0.30600691,653.58,652.87,2.17391968]
[1740116456325,0.30600691,653.58,652.88,2.17391968]
[1740116456523,0.30600691,653.58,652.89,2.17391968]
[1740116456823,0.30600691,653.58,652.88,3.01615434]
[1740116458121,0.30600691,653.58,652.89,3.01615434]
[1740116459825,0.30600691,653.58,652.72,1.15061681]
[1740116460018,0.30600691,653.58,652.73,2.17316661]
[1740116460221,0.30600691,653.58,652.74,2.17316661]
[1740116460422,0.30600691,653.58,652.75,2.17316661]
[1740116460618,0.30600691,653.58,652.76,2.17316661]
[1740116460819,0.30600691,653.58,652.77,2.17316661]
[1740116461024,0.30600691,653.58,652.78,2.17316661]
[1740116461226,0.30600691,653.58,652.73,3.0154486]
[1740116461227,0.30600691,653.58,652.79,5.18861521]
[1740116461427,0.30600691,653.58,652.8,2.17316661]
[1740116461625,0.30600691,653.58,652.81,2.17316661]
[1740116461826,0.30600691,653.58,652.82,2.17316661]
[1740116462122,0.30600691,653.58,652.83,2.17316661]
[1740116462326,0.30600691,653.58,652.79,3.0154486]
[1740116462626,0.30600691,653.58,652.8,5.18789412]
[1740116462828,0.30600691,653.58,652.81,2.17244552]
[1740116463023,0.30600691,653.58,652.8,3.0154486]
[1740116463228,0.30600691,653.58,652.81,2.1717215]
[1740116463429,0.30600691,653.58,652.8,3.0154486]
[1740116463929,0.30600691,653.58,652.81,3.0154486]
[1740116465130,0.30600691,653.58,652.82,3.0154486]
[1740116465730,0.30600691,653.58,652.83,2.17069434]
[1740116466026,0.30600691,653.58,652.84,2.17069434]
[1740116466225,0.30600691,653.58,652.85,2.17069434]
[1740116466430,0.30600691,653.58,652.86,2.17045581]
[1740116466630,0.30600691,653.58,652.87,2.17045581]
[1740116466931,0.30600691,653.58,652.88,2.17045581]
[1740116467130,0.30600691,653.58,652.85,3.0154486]
[1740116467324,0.30600691,653.58,652.86,2.17020675]
[1740116467525,0.30600691,653.58,652.87,2.17020675]
[1740116467728,0.30600691,653.58,652.88,2.17020675]
[1740116467932,0.30600691,653.58,652.89,2.17020675]
[1740116468132,0.30600691,653.58,652.9,5.18565535]
[1740116468331,0.30600691,653.58,652.91,2.17020675]
[1740116468531,0.30600691,653.58,652.92,2.17020675]
[1740116468728,0.30600691,653.58,652.93,2.17020675]
[1740116468929,0.30600691,653.58,652.94,2.17020675]
[1740116469131,0.30600691,653.58,652.9,3.0154486]
[1740116469433,0.30600691,653.58,652.71,1.15061681]
[1740116469625,0.30600691,653.58,652.72,2.17047907]
[1740116469830,0.30600691,653.58,652.73,2.17047907]
[1740116470031,0.30600691,653.58,652.74,2.17047907]
[1740116470228,0.30600691,653.58,652.75,2.17047907]
[1740116470427,0.30600691,653.58,652.74,3.01164222]
[1740116470730,0.30600691,653.58,652.75,2.1704314]
[1740116470930,0.30600691,653.58,652.74,3.01164222]
[1740116471328,0.30600691,653.58,652.75,3.01164222]
[1740116471833,0.30600691,653.58,652.76,2.17031924]
[1740116472132,0.30600691,653.58,652.75,3.01164222]
[1740116472333,0.30600691,653.58,652.76,2.17027063]
[1740116472533,0.30600691,653.58,652.75,3.01164222]
[1740116472734,0.30600691,653.58,652.76,5.18184213]
[1740116472934,0.30600691,653.58,652.77,2.17019991]
[1740116473134,0.30600691,653.58,652.78,2.17019991]
[1740116473335,0.30600691,653.58,652.76,3.01164222]
[1740116475137,0.30600691,653.58,652.66,1.15061681]
[1740116475336,0.30600691,653.58,652.67,2.16983104]
[1740116475538,0.30600691,653.58,652.68,2.16983104]
[1740116475731,0.30600691,653.58,652.69,2.16983104]
[1740116475936,0.30600691,653.58,652.7,2.16983104]
[1740116476138,0.30600691,653.58,652.71,2.16983104]
[1740116476338,0.30600691,653.58,652.67,3.0108334]
[1740116476543,0.30600691,653.58,652.68,2.16970254]
[1740116476737,0.30600691,653.58,652.69,5.18053594]
[1740116477036,0.30600691,653.58,652.7,2.16970254]
[1740116477233,0.30600691,653.58,652.71,2.16970254]
[1740116477539,0.30600691,653.58,652.69,3.0108334]
[1740116477735,0.30600691,653.58,652.7,2.16981637]
[1740116477937,0.30600691,653.58,652.71,2.16981637]
[1740116478237,0.30600691,653.58,652.7,3.0108334]
[1740116478539,0.30600691,653.58,652.71,2.16976193]
[1740116478738,0.30600691,653.58,652.7,3.0108334]
[1740116478938,0.30600691,653.58,652.71,2.16972693]
[1740116479140,0.30600691,653.58,652.72,2.16972693]
[1740116479337,0.30600691,653.58,652.73,2.16972693]
[1740116479539,0.30600691,653.58,652.74,2.16972693]
[1740116479740,0.30600691,653.58,652.75,2.16972693]
[1740116479941,0.30600691,653.58,652.76,2.16972693]
[1740116480239,0.30600691,653.58,652.77,2.16972693]
[1740116480440,0.30600691,653.58,652.78,2.16966072]
[1740116480741,0.30600691,653.58,652.79,2.16958486]
[1740116480940,0.30600691,653.58,652.67,1.15061681]
[1740116481141,0.30600691,653.58,652.68,2.16959383]
[1740116481336,0.30600691,653.58,652.69,2.16959383]
[1740116481541,0.30600691,653.58,652.7,2.16959383]
[1740116481842,0.30600691,653.58,652.71,2.16953168]
[1740116482044,0.30600691,653.58,652.69,3.01044101]
[1740116482341,0.30600691,653.58,652.7,2.16952283]
[1740116482540,0.30600691,653.58,652.7,3.01044101]
[1740116482742,0.30600691,653.58,652.71,2.16939816]
[1740116483042,0.30600691,653.58,652.7,3.01044101]
[1740116483242,0.30600691,653.58,652.73,1.15061681]
[1740116483436,0.30600691,653.58,652.74,2.16932407]
[1740116483638,0.30600691,653.58,652.75,2.16932407]
[1740116483835,0.30600691,653.58,652.76,2.16932407]
[1740116484037,0.30600691,653.58,652.77,2.16932407]
[1740116484236,0.30600691,653.58,652.78,2.16932407]
[1740116484436,0.30600691,653.58,652.79,2.16932407]
[1740116484737,0.30600691,653.58,652.8,5.17976508]
[1740116484942,0.30600691,653.58,652.8,3.01044101]
[1740116485642,0.30600691,653.58,652.81,2.16888655]
[1740116485834,0.30600691,653.58,652.8,3.01044101]
[1740116486039,0.30600691,653.58,652.81,2.16888681]
[1740116486241,0.30600691,653.58,652.82,3.01044101]
[1740116488041,0.30600691,653.58,652.83,2.16891499]
[1740116488237,0.30600691,653.58,652.84,2.16891499]
[1740116488441,0.30600691,653.58,652.79,1.15061681]
[1740116488641,0.30600691,653.58,652.8,2.16896851]
[1740116488841,0.30600691,653.58,652.83,1.15061681]
[1740116489140,0.30600691,653.58,652.84,5.17864216]
[1740116489338,0.30600691,653.58,652.84,3.00967365]
[1740116490045,0.30600691,653.58,652.85,2.16901701]
[1740116490244,0.30600691,653.58,652.84,3.00967365]
[1740116490540,0.30600691,653.58,652.85,5.17870955]
[1740116490744,0.30600691,653.58,652.86,2.1690359]
[1740116490945,0.30600691,653.58,652.85,3.00967365]
[1740116492145,0.30600691,653.58,652.84,1.15061681]
[1740116494250,0.30600691,653.58,652.7,1.15061681]
[1740116497756,0.30600691,653.58,652.69,1.15061681]
[1740116500855,0.30600691,653.58,652.7,2.17109714]
[1740116501056,0.30600691,653.58,652.68,1.15061681]
[1740116501350,0.30600691,653.58,652.69,2.17105704]
[1740116501548,0.30600691,653.58,652.7,2.17105704]
[1740116501751,0.30600691,653.58,652.69,3.0127035]
[1740116501955,0.30600691,653.58,652.7,2.17156225]
[1740116502255,0.30600691,653.58,652.71,2.17156225]
[1740116502453,0.30600691,653.58,652.72,2.17156225]
[1740116502653,0.30600691,653.58,652.73,2.17156225]
[1740116502849,0.30600691,653.58,652.74,2.17156225]
[1740116503155,0.30600691,653.58,652.75,2.17156225]
[1740116503355,0.30600691,653.58,652.76,2.17156225]
[1740116503656,0.30600691,653.58,652.87,1.15061681]
[1740116504851,0.30600691,653.58,652.88,3.0127035]
[1740116506455,0.30600691,653.58,652.89,3.0127035]
[1740116507656,0.30600691,653.58,652.9,3.0127035]
[1740116508960,0.30600691,653.58,652.91,3.0127035]
[1740116510360,0.30600691,653.58,652.92,5.18648065]
[1740116510559,0.30600691,653.58,652.93,2.17377715]
[1740116510760,0.30600691,653.58,652.94,2.17377715]
[1740116510961,0.30600691,653.58,652.95,2.17377715]
[1740116511162,0.30600691,653.58,652.92,3.0127035]
[1740116511358,0.30600691,653.58,652.93,5.18669813]
[1740116511559,0.30600691,653.58,652.94,2.17399463]
[1740116511762,0.30600691,653.58,652.95,2.17399463]
[1740116511962,0.30600691,653.58,652.93,3.0127035]
[1740116512262,0.30600691,653.58,652.94,5.18633029]
[1740116512557,0.30600691,653.58,652.95,2.17362679]
[1740116512761,0.30600691,653.58,652.94,3.0127035]
[1740116513262,0.30600691,653.58,652.95,2.17428336]
[1740116513460,0.30600691,653.58,652.95,3.0127035]